Cogmind - Beta 15 @@@ ROGUE MODE // 2025.05.14 @ 13:26:08 Player: QXander Result: Destroyed by G-47 Trooper with Particle Gun Performance ------------- Evolutions (2) 1000 Regions Visited (4) 800 Robots Destroyed (47) 235 Value Destroyed (1327) 1327 Prototype IDs (0) 0 Alien Tech Used (0) 0 Bonus (0) 0 TOTAL SCORE: 3362 Bonus ------- None Cogmind --------- Core Integrity 0/550 Matter 225/300 Energy 91/100 System Corruption 0% Temperature Cool (9) Movement Walking (120) Location -8/Storage Parts ------- > --- POWER (1) -------- (None) > --- PROPULSION (5) --- Aluminum Leg > --- UTILITY (3) ------ Improved Targeting Computer > --- WEAPON (2) ------- Heavy Flail > --- INVENTORY (5) ---- Improved Heat Sink Hardened Medium Armor Plating Hardlight Generator Drone Bay (2/2) Drone Bay (2/2) Peak State ------------ > --- POWER ------------ Light Nuclear Core > --- PROPULSION ------- Aluminum Leg Aluminum Leg Carbon-fiber Leg Carbon-fiber Leg Carbon-fiber Leg > --- UTILITY ---------- Improved Terrain Scanner Improved Targeting Computer Hardened Medium Armor Plating > --- WEAPON ----------- Pulse Rifle Gauss Rifle > --- INVENTORY -------- Improved Ion Engine Aluminum Leg Aluminum Leg Improved Heat Sink Hardlight Generator [Rating: 30] Favorites ----------- Power Improved Ion Engine Engine Improved Ion Engine Power Core Light Nuclear Core Propulsion Aluminum Leg Leg Aluminum Leg Utility Medium Storage Unit Device Improved Terrain Scanner Storage Medium Storage Unit Processor Improved Signal Interpreter Protection Light Armor Plating Weapon Pulse Rifle Energy Gun Pulse Rifle Ballistic Gun Light Assault Rifle Impact Weapon Heavy Flail Slashing Weapon Scythe Build | -11 -10 -9 -8 -8 ------- Run | Yrd Mat Mat Mat Sto Slots Evolved 4 | . . 2 2 . Power . | . . . . . Propulsion 3 | . . 2 1 . Utility 1 | . . . 1 . Weapon . | . . . . . Parts Attached 53 | 6 4 17 13 13 Power 7 | 1 1 2 1 2 Engine 6 | 1 1 2 1 1 Core 1 | . . . . 1 Reactor . | . . . . . Propulsion 17 | 2 . 8 4 3 Treads . | . . . . . Leg 17 | 2 . 8 4 3 Wheel . | . . . . . Hover . | . . . . . Flight . | . . . . . Utility 16 | 1 3 2 4 6 Device 7 | . . . 2 5 Storage 3 | 1 2 . . . Processor 3 | . 1 1 1 . Hackware . | . . . . . Protection 3 | . . 1 1 1 Artifact . | . . . . . Weapon 13 | 2 . 5 4 2 Energy Gun 7 | 1 . 3 3 . Energy Cannon . | . . . . . Ballistic Gun 4 | 1 . 1 1 1 Ballistic Cannon . | . . . . . Launcher . | . . . . . Special Weapon . | . . . . . Impact Weapon 1 | . . . . 1 Slashing Weapon 1 | . . 1 . . Piercing Weapon . | . . . . . Special Melee Weapon . | . . . . . Unidentified Prototypes . | . . . . . Parts Lost 20 | . . 5 2 13 Power 5 | . . 1 . 4 Propulsion 9 | . . 3 1 5 Utility 2 | . . . 1 1 Weapon 4 | . . 1 . 3 Highest Loss Streak 10 | . . 5 2 10 To Critical Strikes . | . . . . . Average Backups 4 | 1 4 5 3 4 Power . | . 1 . . . Propulsion 1 | . . 2 . 1 Utility 1 | . 1 1 1 2 Weapon . | . 1 1 . . Tool/Special . | . . . . . Unused Backups 15 | . 1 6 6 2 Power 2 | . 1 . 1 . Propulsion 3 | . . . 3 . Utility 8 | . . 4 2 2 Weapon 2 | . . 2 . . Tool/Special . | . . . . . Average Slot Usage (%) 95 | . 99 95 98 85 Engine 9 | . 14 10 9 2 Leg 38 | . 28 40 44 38 Device 3 | . . . 6 11 Storage 5 | . 14 6 . . Processor 10 | . 12 11 8 9 Protection 5 | . . 4 11 3 Energy Gun 11 | . 14 9 13 7 Ballistic Gun 5 | . 14 2 2 7 Slashing Weapon 3 | . . 10 2 . Peak Build Rating 30 | 6 7 23 29 30 Average Rating 17 | 4 6 17 21 25 On Entrance 11 | . 6 7 14 29 Naked Turns . | . . . . . Heaviest Build 21 | 11 18 20 17 21 Greatest Support 65 | 20 20 60 65 65 Greatest Overweight (x) 3 | . . 1 . 3 Average Overweight (x) . | . . . . . Largest Inventory Capacity 10 | 8 10 10 5 5 Average Capacity 7 | 7 9 8 5 5 Most Carried 10 | 3 7 10 5 5 Average Carried 4 | 1 4 5 3 4 Final Capacity 10 | 8 10 5 5 5 Final Carried 7 | 2 7 3 3 5 Class Distribution -------------------- 51% | Scavenger-Mutant 48% | Mutant Dominant Class ---------------- Mutant | -10/Materials Mutant | -9/Materials Scavenger-Mutant | -8/Materials Scavenger-Mutant | -8/Storage Resources | -11 -10 -9 -8 -8 ----------- Run | Yrd Mat Mat Mat Sto Matter Collected 1059 | 230 124 237 180 288 Remotely . | . . . . . Salvage Created 1523 | . 158 717 190 458 Parts 92 | . 9 43 14 26 Haulers Intercepted . | . . . . . Recyclers Shooed . | . . . . . Parts Field Recycled . | . . . . . Retrieved Matter . | . . . . . Parts Self-Destructed . | . . . . . Prevented . | . . . . . Kills | -11 -10 -9 -8 -8 ------- Run | Yrd Mat Mat Mat Sto Combat Hostiles Destroyed 40 | . 6 17 8 9 Melee 14 | . . 14 . . Guns 22 | . 5 3 5 9 AOE 2 | . . . 2 . Classes Destroyed 8 | . 3 4 1 . Worker 3 | . . . 2 1 Mechanic 1 | . . 1 . . Operator 1 | . . 1 . . Watcher 2 | . 1 . 1 . Swarmer 14 | . 4 4 6 . Grunt 16 | . 2 9 . 5 Duelist 1 | . . 1 . . Sentry 9 | . . 3 2 4 Best Kill Streak 4 | . 3 4 4 4 Combat Bots Only 4 | . 3 4 3 4 Max Kills in Single Turn 3 | . 1 1 3 2 Gunslinging 1 | . . . 1 . Exploded 2 | . . . 2 . Melee 1 | . . 1 . . Uniques/NPCs Destroyed . | . . . . . Combat | -11 -10 -9 -8 -8 -------- Run | Yrd Mat Mat Mat Sto Hostile Shots Fired 323 | . 38 108 67 110 Missed 86 | . 14 26 28 18 Hits 237 | . 24 82 39 92 Melee 6 | . . 6 . . Projectile 231 | . 24 76 39 92 Critical Strikes 11 | . . 5 1 5 Damage Taken 3500 | . 224 1152 578 1546 Core 935 | . 66 307 117 445 Absorbed by Shields . | . . . . . Redirected to Shielding 8 | . . . 8 . Core Remaining (%) 65 | 100 73 23 . . Volleys Fired 146 | . 34 28 36 48 Largest 2 | . 2 1 2 2 Hottest 126 | . 70 45 126 91 Shots Fired 224 | . 68 28 53 75 Gun 224 | . 68 28 53 75 Cannon . | . . . . . Launcher . | . . . . . Special . | . . . . . Kinetic 85 | . 34 3 6 42 Thermal 123 | . 34 9 47 33 Explosive . | . . . . . Electromagnetic 16 | . . 16 . . Robot Hit Streak 17 | . 17 11 15 17 Robot Miss Streak 7 | . 7 3 4 2 Penetration Max . | . . . . . Secondary Targets 2 | . . . 1 1 Max Gunslinging Chain 1 | . . . 1 1 Shots Hit Robots 189 | . 37 59 35 58 Core Hits 75 | . 10 28 13 24 Critical Kills 1 | . . . . 1 Critical Parts Destroyed 1 | . . . . 1 Critical Strikes 7 | . 1 2 . 4 Burn 3 | . 1 . . 2 Destroy 2 | . . . . 2 Sever 2 | . . 2 . . Melee Attacks 42 | . . 42 . . Impact . | . . . . . Slashing 42 | . . 42 . . Piercing . | . . . . . Sneak Attacks 2 | . . 2 . . Combat Hostiles . | . . . . . Follow-up Attacks . | . . . . . Damage Inflicted 3851 | . 383 1442 970 1056 Guns 2361 | . 383 334 598 1046 Cannons . | . . . . . Explosions 412 | . . 40 372 . Melee 1068 | . . 1068 . . Ramming 10 | . . . . 10 Kinetic 818 | . 155 22 54 587 Thermal 1738 | . 228 135 916 459 Explosive . | . . . . . Electromagnetic 217 | . . 217 . . Impact . | . . . . . Slashing 1068 | . . 1068 . . Piercing . | . . . . . Highest Corruption . | . . . . . Average Corruption . | . . . . . Corruption Purged . | . . . . . Corruption Blocked . | . . . . . Overload Shots . | . . . . . Overflow Damage 216 | . . 44 172 . Projectiles . | . . . . . Explosions 181 | . . 9 172 . Melee 35 | . . 35 . . Knockbacks . | . . . . . Impact . | . . . . . Kinetic . | . . . . . Secondary . | . . . . . Self-Inflicted Damage 65 | . . 20 41 4 Shots 2 | . . 1 1 . Rammed 1 | . . . . 1 Targets Rammed 2 | . . . . 2 Kicked 1 | . . . . 1 Crushed . | . . . . . Highest Temperature 673 | . 170 25 315 673 Average Temperature 127 | . 58 8 114 216 Received Heat Transfer 1407 | . 60 420 108 819 Effects 17 | . . . 1 16 Energy Bleed 3 | . . . . 3 Interference 3 | . . . 1 2 Matter Decay 2 | . . . . 2 Short Circuit 1 | . . . . 1 Damage (minor) 2 | . . . . 2 Damage (major) 5 | . . . . 5 Damage (core) 1 | . . . . 1 Siege Activations . | . . . . . Martial Activations . | . . . . . Shielding Activations . | . . . . . Robots Disrupted . | . . . . . Combat Hostiles . | . . . . . Robots Corrupted . | . . . . . Combat Hostiles . | . . . . . Parts Fried . | . . . . . Impact Corruptions . | . . . . . Robots Melted 2 | . 1 . 1 . Combat Hostiles 2 | . 1 . 1 . Parts Melted 3 | . . . 2 1 Heat Transferred 3546 | . 740 275 1384 1147 Parts Sabotaged . | . . . . . Parts Stolen . | . . . . . Parts Stripped . | . . . . . Power Chain Reactions 1 | . . 1 . . Alert | -11 -10 -9 -8 -8 ------- Run | Yrd Mat Mat Mat Sto Maximum Alert Level . | . . . . . Low Security (%) 100 | 100 100 100 100 100 Level 1 . | . . . . . Level 2 . | . . . . . Level 3 . | . . . . . Level 4 . | . . . . . Level 5 . | . . . . . High Security . | . . . . . Max Security . | . . . . . Peak Influence 146 | . 145 146 128 96 Initial 29 | . . . 29 1 Average 48 | . 44 65 51 29 Influence Increases 1331 | . 238 483 294 316 Destroy 0b10 Robot/C 800 | . 120 340 160 180 Destroy 0b10 Robot/NC 35 | . 5 10 15 5 Destroy Leader 194 | . 22 80 42 50 Successful Hack 52 | . 16 20 12 4 Disable Machine 60 | . . 15 45 . Destroy Structure 25 | . . 3 20 2 Lose Combat Pursuer 165 | . 75 15 . 75 Influence Decreases 1305 | . 238 413 359 295 Entered New Map 45 | . . . 41 4 Time Decay 950 | . 110 363 298 179 Lost Part 182 | . . 50 20 112 Purge Threat 128 | . 128 . . . Squads Dispatched 5 | . . 3 . 2 Investigation 3 | . . 1 . 2 Extermination . | . . . . . Reinforcement 2 | . . 2 . . Assault . | . . . . . Garrison . | . . . . . Intercept . | . . . . . Searches Triggered . | . . . . . Construction Impeded . | . . . . . Haulers Reinforced . | . . . . . Active Scanning Responses . | . . . . . Cargo Convoy Interrupts . | . . . . . Stealth | -11 -10 -9 -8 -8 --------- Run | Yrd Mat Mat Mat Sto Distress Signals 4 | . 1 1 2 . Communications Jammed . | . . . . . Distress Signals . | . . . . . Times Spotted 81 | . 17 27 15 22 Peak Tracking Total 9 | . 9 7 5 6 Tactical Retreats 6 | . 3 1 . 2 Traps | -11 -10 -9 -8 -8 ------- Run | Yrd Mat Mat Mat Sto Traps Triggered 2 | . . 1 . 1 Indirectly . | . . . . . Trap Hack Attempts . | . . . . . Triggered . | . . . . . Disarmed . | . . . . . Reprogrammed . | . . . . . Reused . | . . . . . Traps Extracted . | . . . . . Installed . | . . . . . Triggered . | . . . . . Machines | -11 -10 -9 -8 -8 ---------- Run | Yrd Mat Mat Mat Sto Machines Disabled 4 | . . 1 3 . Max in Single Turn 2 | . . 1 2 . Machines Repaired . | . . . . . Machines Dismantled . | . . . . . Machines Sabotaged . | . . . . . Overloaded Fab Kills . | . . . . . Hacking | -11 -10 -9 -8 -8 --------- Run | Yrd Mat Mat Mat Sto Machines Accessed 21 | . 4 5 5 7 Terminals 15 | . 4 3 2 6 Fabricators . | . . . . . Repair Stations 1 | . . . 1 . Recycling Units 3 | . . 1 1 1 Scanalyzers 2 | . . 1 1 . Garrison Access . | . . . . . Total Hacks 49 | . 14 13 10 12 Successful 35 | . 10 10 8 7 Failed 14 | . 4 3 2 5 Catastrophic 2 | . 1 . . 1 Database Lockouts . | . . . . . Manual . | . . . . . Terminals 36 | . 14 8 3 11 Fabricators . | . . . . . Repair Stations 2 | . . . 2 . Recycling Units 5 | . . 1 3 1 Scanalyzers 6 | . . 4 2 . Garrison Access . | . . . . . Terminal Hacks 25 | . 10 7 2 6 Record 2 | . 1 . . 1 Open Door 3 | . . . . 3 Emergency Access Points 3 | . 2 1 . . Alert Level 5 | . 2 1 1 1 Unreport Threat 1 | . 1 . . . Locate Traps 2 | . 2 . . . Investigation Status 2 | . . 2 . . Extermination Status 1 | . . . . 1 Assault Status 1 | . 1 . . . Registered Components 1 | . . . 1 . Zone Layout 4 | . 1 3 . . Fabricator Hacks . | . . . . . Repair Station Hacks 2 | . . . 2 . Scan Component 1 | . . . 1 . Repair 1 | . . . 1 . Recycling Unit Hacks 4 | . . 1 2 1 Report Inventory 3 | . . 1 1 1 Retrieve Components 1 | . . . 1 . Scanalyzer 4 | . . 2 2 . Insert Component 2 | . . 1 1 . Analyze 2 | . . 1 1 . Garrison Access Hacks . | . . . . . Unauthorized Hacks . | . . . . . Terminals . | . . . . . Fabricators . | . . . . . Repair Stations . | . . . . . Recycling Units . | . . . . . Scanalyzers . | . . . . . Garrison Access . | . . . . . Data Cores Recovered . | . . . . . Used . | . . . . . Hacking Detections 12 | . 3 1 4 4 Full Trace Events 2 | . 1 . . 1 Feedback Events . | . . . . . Feedback Blocked . | . . . . . Robot Schematics Acquired . | . . . . . Robots Built . | . . . . . Authchips . | . . . . . Time . | . . . . . Total Robot Build Rating . | . . . . . Part Schematics Acquired 2 | . . 1 1 . Parts Built . | . . . . . Authchips . | . . . . . Time . | . . . . . Total Part Build Rating . | . . . . . Parts Repaired . | . . . . . Time 26 | . . . 26 . Parts Recycled . | . . . . . Recycled Matter . | . . . . . Retrieved Matter . | . . . . . Retrieved Components 5 | . . . 5 . Parts Scanalyzed 2 | . . 1 1 . Part Schematics Acquired 2 | . . 1 1 . Parts Damaged . | . . . . . Bothacking | -11 -10 -9 -8 -8 ------------ Run | Yrd Mat Mat Mat Sto Used RIF Installer . | . . . . . Robots Hacked . | . . . . . Non-combat . | . . . . . Combat . | . . . . . Robot Hacks Applied . | . . . . . Relay Couplers Released . | . . . . . Fabnet Peak Effective % . | . . . . . Robots Rewired . | . . . . . Allies Hacked . | . . . . . Hacks Repelled . | . . . . . Allies | -11 -10 -9 -8 -8 -------- Run | Yrd Mat Mat Mat Sto Total Allies . | . . . . . Largest Group . | . . . . . Highest-Rated Group . | . . . . . Highest-Rated Ally . | . . . . . Total Orders . | . . . . . Ally Attacks . | . . . . . Total Damage . | . . . . . Kills . | . . . . . Allies Corrupted . | . . . . . Allies Melted . | . . . . . Intel | -11 -10 -9 -8 -8 ------- Run | Yrd Mat Mat Mat Sto Active Infowar (turns) 656 | . . . 172 484 Terrain 656 | . . . 172 484 Robot Analysis Total . | . . . . . Derelict Logs Recovered . | . . . . . Drone Launches . | . . . . . Drone Recoveries . | . . . . . Exploration | -11 -10 -9 -8 -8 ------------- Run | Yrd Mat Mat Mat Sto Turns Passed 3037 | 117 625 949 743 603 Spaces Moved 1984 | 91 421 561 504 407 Core 103 | 9 . . . 94 Treads . | . . . . . Legs 1881 | 82 421 561 504 313 Wheels . | . . . . . Hover . | . . . . . Flight . | . . . . . Fastest Speed 50 | 50 120 120 120 50 Average Speed 116 | 113 120 120 120 105 Slowest Speed 200 | 120 120 190 120 200 Overloaded Moves . | . . . . . Propulsion Burnouts . | . . . . . Robots Hopped . | . . . . . Potential Cave-ins . | . . . . . Cave-ins Triggered . | . . . . . Exploration Rate (%) 32 | 5 49 38 25 44 Regions Visited 4 Branch Regions 1 Pre-discovered Areas . | . . . . . Known Exits Taken 2 | . . 1 1 . Unknown Exits Taken 2 | 1 1 . . . Scrap Searched . | . . . . . Spaces Dug . | . . . . . Terrain Destroyed 22 | . . 2 20 . Melee . | . . . . . Projectile 1 | . . . 1 . AOE 21 | . . 2 19 . Terrain Rammed . | . . . . . Walls Destroyed . | . . . . . Machines Disabled . | . . . . . Actions | -11 -10 -9 -8 -8 --------- Run | Yrd Mat Mat Mat Sto Total 2439 | 104 480 747 596 512 Wait 75 | . 6 54 2 13 Move 1980 | 90 420 560 503 407 Hop . | . . . . . Pick Up 66 | 7 9 21 19 10 Fast Attach 9 | 2 . . 2 5 Attach 42 | 4 3 16 10 9 Detach 17 | . 2 4 4 7 Swap 18 | . 3 7 5 3 Drop 42 | 1 3 15 15 8 Fire 146 | . 34 28 36 48 Melee 42 | . . 42 . . Ram 1 | . . . . 1 Kick 1 | . . . . 1 Crush . | . . . . . Escape Stasis . | . . . . . Rewire . | . . . . . Trap . | . . . . . Miscellaneous . | . . . . . Route ------- -11/Scrapyard -10/Materials -9/Materials -8/Materials -8/Storage History --------- Turn | Location | Event 10 | -11/Scrapyard | Discovered new exit (range 15) 118 | -11/Scrapyard | Entered Materials 249 | -10/Materials | Discovered new exit (range 14) 305 | -10/Materials | Build established: Mutant 743 | -10/Materials | Entered another Materials area 743 | -9/Materials | Evolved 2 slots: Propulsion x2 1283 | -9/Materials | Core integrity fell below 50% 1316 | -9/Materials | Lost 5 parts (1p3n1w) 1671 | -9/Materials | Build established: Scavenger-Mutant 1680 | -9/Materials | Discovered new exit (range 10) 1690 | -9/Materials | Identified exit to Materials 1692 | -9/Materials | Entered another Materials area 1692 | -8/Materials | Evolved 2 slots: Propulsion x1, Utility x1 1712 | -8/Materials | Discovered new exit (range 15) 1730 | -8/Materials | Identified exit to Storage 2435 | -8/Materials | Entered Storage 2946 | -8/Storage | Core integrity fell below 50% 2973 | -8/Storage | Core integrity fell below 20% 2982 | -8/Storage | Lost 10 parts (1p5n1u3w) 3038 | -8/Storage | Destroyed by G-47 Trooper with Particle Gun Last Messages --------------- Imp. Terrain Scanner temporarily disabled. Acquired 37 matter. Hrd. Medium Armor Plating destroyed. Pulse Rifle destroyed. Acquired 5 matter. Acquired 33 matter. Overheating: Core damaged (-82). Overheating: Imp. Terrain Scanner damaged (-3). K-01 Serf cleans the Transport Mainframe. Slammed into A-02 Transporter. Connecting with Door Terminal... >>Open(Door) Sealed Heavy Doors opened. Acquired Drone Bay. Dropped Drone Bay. Dropped Imp. Terrain Scanner. Acquired Drone Bay. Imp. Ion Engine destroyed. Critical hit (Burn: +37). Acquired Hvy. Flail. Map ----- +----------------------------------------------------+ | ?????????????????????????????????????????????????? | | ?????????????????????????????????????????????????? | | ?????????????????????????????????????????????????? | | ?????????????????????????????????????????????????? | | ?????????????????????????????????????????????????? | | ?????????????????????????????????????????????????? | | ?????????????????????????????????????????????????? | | ?????????????????????????????????????????????????? | | ?????????????????????????????????????????????????? | | ?????????????????????????????????????????????????? | | ?????????????????????????????????????????????????? | | ?????????????????????????????????????????????????? | | ?????????????????????????????????????????????????? | | ?????????????????????????????????????????????????? | | ?????????????????????????????????????????????????? | | ????????#####????????????????????????????????????? | | ????????# #????????????????????????????????????? | | ????????# #????????????????????????????????????? | | ????????# #????????????????????????????????????? | | #???????# #????????????????????????????????????? | | ????????# #????????????????????????????????????? | | ?????? ?+ #????????????????????????????????????? | | ? ? ??? # #???????????###??????????????????????? | | ?? ?????# #?????????### #######????????????????? | | ???? #??# #?????????# ###??????????????? | | ????????# #?????????# @Y ""#??????????????? | | ######### #?##??????# ! T"#??????????????? | | % #??#??????# ^ ""#??????????????? | | ######### #?????????# """ ###??????????????? | | #?# #?????????# g """ #????????????????? | | ### #?##???#??# "Y" """g#????????????????? | | ! #?# #?????????# """ #????????????????? | | #?# ###############+#+##########?????????? | | * #?# # # !!#?????????? | | = / #?# + ! #?????????? | | /##/###?# # #!!!!#?????????? | | = #?#####################+###+#T######?????????? | | +## ### ##??????????????###??????????????? | | % # ### "#??????? ???? ?????????????????? | | # #?# T##?????? ??????????????????????? | | " # ### = ![ "#???#??? ? ? ???#??##???#??????? | | " # #?# [[ ##?????? ? ???????#?????#???????? | | " # #?# ![ ##??????? ?? ????????????????????? | | ### #?# ##?#??????????????????##"#??????? | | ### ### "T" ##?#??# ? ?? ?? ???????#T #??????? | | # ####+##############################+#####??? | | # #??? | | + % #??? | | # % #??? | | # ####+#########+###########+##############??? | +----------------------------------------------------+ Best States ------------- Heat Dissipation 45 Energy Generation 14 Energy Capacity 265 Matter Stores 300 Matter Capacity 300 Sight Range 16 Terrain Scan Range 16 Terrain Scan Density 10 Armor Coverage 225 Core Shielding 20 Evasion (%) 63 Targeting Accuracy 6 Item Schematics ----------------- Aluminum Leg | -9/Materials | Scanalyzed Imp. Ion Engine | -8/Materials | Scanalyzed Robot Schematics ------------------ None Fabricated ------------ Nothing Repaired ---------- Nothing Alien Tech Used ----------------- None Achievements -------------- None Challenges ------------ None Game ------ Seed JunkCompositeMantle Manual? 0 Play Time 00:40:25 Cumulative 14.6 hours Start 2025.05.14 @ 12:47:41 End 2025.05.14 @ 13:26:08 Sessions 1 Manual Loads 0 Difficulty Rogue Special Mode None Game No. 19 Rogue 19 Adventurer 0 Explorer 0 Win Type - Total 0 Types 0/0/0/0/0/0/0/0/0/0 Lore% 9 Gallery% 19 Achievement% 16 Wizard Run 0 Options --------- Layout 1 ASCII 0 Keyboard 0 Movement Arrows Keybinds 0 Fullscreen 1 Font 24/Smallcaps Map View 50x35 Zoom Use 0% Tactical HUD 0 Map Filters NONE Filters NONE Steam 1 RUN: f6f66c84-ef1c-426f-8b0f-d2d69800ca85